Cogmind - Beta 12 X6 @@@ ROGUE MODE // 2023.01.23 @ 01:40:30 Player: cptwinky Result: Destroyed by X-77 Beamer with Gatling Laser Performance ------------- Evolutions (7) 3500 Regions Visited (28) 5600 Robots Destroyed (308) 1540 Value Destroyed (12755) 12755 Prototype IDs (57) 1140 Alien Tech Used (3) 600 Bonus (4777) 4777 TOTAL SCORE: 29912 Bonus ------- High Alert Combat Kills 891 Follower Combat Kills 2435 Entered Garrisons 400 Met Imprinter 300 Destroyed Z-Imprinter 1000 Met Zhirov 300 Met Warlord at Base 500 MAIN.C Attacked Warlord 500 Warlord Defense Kills 2880 Friendly Fire -4429 Cogmind --------- Core Integrity 0/1300 Matter 300/300 Energy 100/100 System Corruption 17% Temperature Cool (24) Movement Core (50) Location -3/Research Parts ------- > --- POWER (2) -------- (None) > --- PROPULSION (6) --- (None) > --- UTILITY (11) ----- Improved Signal Interpreter > --- WEAPON (2) ------- (None) > --- INVENTORY (5) ---- Zionite Biocell (600) Zionite Metafield Generator Ghost Barrier Zionite Phaser-S CR-A16's Behemoth Slayer Peak State ------------ > --- POWER ------------ Vortex Chain Reactor > --- PROPULSION ------- Heavy Treads Armored Heavy Treads Enhanced Biometal Leg Enhanced Biometal Leg > --- UTILITY ---------- Advanced Heat Sink Medium Storage Unit Experimental Core Analyzer Centrium Light Armor Plating Centrium Light Armor Plating Improved Focal Shield Advanced Force Field Hacking Suite Makeshift Hacking Suite Advanced Drone Bay > --- WEAPON ----------- Power Sword Enhanced Force Lance > --- INVENTORY -------- Light Antimatter Reactor Light Antimatter Reactor Flexi-carbon Leg Flexi-carbon Leg Zionite Biocell Zionite Metafield Generator Improved Cloaking Device Ghost Barrier Zionite Phaser-S CR-A16's Behemoth Slayer [Rating: 153] Favorites ----------- Power Micro Fission Core Engine Light Deuterium Engine Power Core Micro Fission Core Reactor Vortex Chain Reactor Propulsion Flexi-carbon Leg Treads Armored Treads Leg Flexi-carbon Leg Wheel Compact Wheel Hover Unit Zionite Glidesys I Flight Unit Nuclear Pulse Array Utility Advanced Targeting Computer Device Advanced Heat Sink Storage High-capacity Storage Unit Processor Advanced Targeting Computer Hackware Makeshift Hacking Suite Protection Improved Medium Armor Plating Weapon Long-range Proton Cannon Energy Gun Beamcaster Energy Cannon Long-range Proton Cannon Ballistic Gun Improved Assault Rifle Ballistic Cannon Enhanced Gauss Cannon Launcher Rocket Launcher Special Weapon Enhanced Flamer Impact Weapon Heavy Mace Slashing Weapon Makeshift Sword Piercing Weapon Spear Special Melee Weapon Datajack Build | -11 -10 -10 -9 -9 -8 -8 -8 -7 -7 -7 -7 -7 -7 -7 -6 -6 -6 -5 -5 -5 -5 -4 -4 -4 -4 -4 -3 -3 ------- Run | Jun Mat Min Mat Sto Mat Gar Mat Fac Was Fac Low Low Zio Dee Pro Fac Gar Fac Upp Upp Zhi Pro Fac Upp Upp War Pro Res Slots Evolved 14 | . . . 2 . 2 . . 2 . . . . . . . 2 . 2 . . . . 2 . . . . 2 Power 1 | . . . . . . . . . . . . . . . . . . 1 . . . . . . . . . . Propulsion 4 | . . . 1 . . . . . . . . . . . . 1 . 1 . . . . 1 . . . . . Utility 9 | . . . 1 . 2 . . 2 . . . . . . . 1 . . . . . . 1 . . . . 2 Weapon . | . . . . . . . . . . . . . . . . . . . . . . . . . . . . . Parts Attached 428 | 2 12 4 29 42 7 37 10 14 6 5 6 5 14 25 5 5 18 9 18 23 10 14 14 26 13 21 16 18 Power 36 | . . 2 3 3 . 2 . 1 . . 3 . . 2 . . 1 2 2 1 1 2 . 5 2 1 . 3 Engine 13 | . . 1 3 3 . 2 . . . . 1 . . 1 . . . . . 1 . . . 1 . . . . Core 17 | . . 1 . . . . . 1 . . 2 . . . . . 1 2 2 . 1 1 . 4 2 . . . Reactor 6 | . . . . . . . . . . . . . . 1 . . . . . . . 1 . . . 1 . 3 Propulsion 95 | 2 2 . 10 7 3 8 2 4 2 1 . . 5 7 . 1 4 2 5 1 1 5 6 1 2 5 3 6 Treads 44 | 2 2 . 7 7 3 8 2 . . . . . 1 . . . 1 2 . 1 . . 3 . 2 1 1 1 Leg 35 | . . . 3 . . . . . . . . . 3 5 . 1 3 . 5 . 1 . 3 1 . 4 1 5 Wheel 1 | . . . . . . . . . . . . . . . . . . . . . . . . . . . 1 . Hover 8 | . . . . . . . . . . . . . 1 2 . . . . . . . 5 . . . . . . Flight 7 | . . . . . . . . 4 2 1 . . . . . . . . . . . . . . . . . . Utility 140 | . 2 . 4 11 4 7 3 8 3 2 1 2 4 9 1 4 6 2 4 13 6 7 3 6 4 10 7 7 Device 55 | . . . 2 4 . . 1 2 2 . 1 1 . 4 . 1 2 . 3 6 6 3 1 4 . 4 3 5 Storage 8 | . 1 . 1 . . . . 1 . . . . 1 1 . . . . . . . 1 . . 1 . . 1 Processor 19 | . 1 . 1 . 2 1 . 1 . 1 . . 2 . . 1 1 . . 1 . 1 1 . 2 2 . 1 Hackware 9 | . . . . . . . . 3 1 . . . 1 . . . . 1 . . . 2 . . . . 1 . Protection 49 | . . . . 7 2 6 2 1 . 1 . 1 . 4 1 2 3 1 1 6 . . 1 2 1 4 3 . Artifact . | . . . . . . . . . . . . . . . . . . . . . . . . . . . . . Weapon 157 | . 8 2 12 21 . 20 5 1 1 2 2 3 5 7 4 . 7 3 7 8 2 . 5 14 5 5 6 2 Energy Gun 26 | . 1 . 4 . . . . . . . . . . 3 1 . . 1 5 1 . . 2 3 1 1 3 . Energy Cannon 27 | . . . 2 9 . . . . . . . . . . . . . . . 2 . . 1 8 2 2 1 . Ballistic Gun 49 | . 5 2 4 6 . 11 3 1 . . . 1 3 2 3 . 4 1 1 2 . . . . . . . . Ballistic Cannon 2 | . . . . . . . . . . . . . . . . . . . . 1 . . 1 . . . . . Launcher 14 | . . . 2 2 . 6 1 . . 1 . . . 1 . . 1 . . . . . . . . . . . Special Weapon 5 | . . . . . . . . . . . . . . 1 . . . . 1 1 2 . . . . . . . Impact Weapon 12 | . . . . 1 . 3 1 . 1 1 2 1 2 . . . . . . . . . . . . . . . Slashing Weapon 4 | . . . . . . . . . . . . . . . . . 1 1 . . . . . . . . 1 1 Piercing Weapon 13 | . . . . . . . . . . . . 1 . . . . 1 . . 1 . . 1 3 2 2 1 1 Special Melee Weapon 5 | . 2 . . 3 . . . . . . . . . . . . . . . . . . . . . . . . Unidentified Prototypes 34 | . . . 2 3 . . . 1 2 . 1 . . 14 . . . . . 1 3 1 . . . 6 . . Parts Lost 87 | . . 2 4 . 1 3 1 2 . 1 . . . . . . 7 4 . 7 . 20 3 3 6 . 3 20 Power 17 | . . 2 . . . 1 . . . . . . . . . . 1 . . . . 4 2 2 1 . . 4 Propulsion 25 | . . . 3 . . 1 . . . . . . . . . . 1 1 . 3 . 9 . . 1 . . 6 Utility 37 | . . . 1 . 1 1 1 2 . 1 . . . . . . 4 1 . 4 . 6 1 1 3 . 1 9 Weapon 8 | . . . . . . . . . . . . . . . . . 1 2 . . . 1 . . 1 . 2 1 Highest Loss Streak 19 | . . 1 1 . 1 3 1 2 . 1 . . . . . . 4 3 . 3 . 19 1 1 4 . 3 18 To Critical Strikes 3 | . . . 1 . . . . . . . . . . . . . . 1 . 1 . . . . . . . . Average Slot Usage (%) 89 | . 97 100 90 100 97 99 99 74 71 72 69 70 78 86 92 86 91 96 99 91 79 66 55 82 92 92 82 74 Engine 4 | . 14 2 8 11 9 8 9 . . . 3 7 7 7 7 6 1 . . 3 4 . 4 . . . . . Core 3 | . . 11 2 . . . . 6 7 7 3 . . . . . 4 10 11 7 5 7 . 4 10 6 . . Treads 12 | . 27 28 25 33 27 26 27 2 . . . . 2 . . . 3 10 6 3 5 3 13 10 10 9 7 7 Leg 11 | . . . 7 . . . . . . . . . 11 22 23 23 22 17 22 18 12 11 3 19 21 20 14 10 Flight 1 | . . . . . . . . 13 15 15 15 15 4 . . . . . . . . . . . . . . . Device 7 | . . . 1 4 . . . 6 5 2 4 6 7 4 . . 2 3 7 16 16 9 6 13 10 11 16 16 Storage 6 | . 14 14 11 11 9 9 9 7 7 7 7 7 7 7 7 6 6 5 5 5 5 4 . . . . . 3 Processor 13 | . 12 14 6 11 16 21 25 5 7 11 15 15 17 15 15 17 22 23 17 6 5 5 8 5 9 16 12 4 Hackware 4 | . . . . . . . . 19 19 19 15 15 9 7 7 6 6 5 5 5 5 5 10 5 5 5 5 7 Protection 7 | . . . 5 6 16 14 8 8 7 4 2 . . 4 15 12 5 5 8 8 11 7 . 11 13 8 8 8 Energy Gun 2 | . 2 11 6 . . . . . . . . . . . . . . . 7 5 . . 4 . 1 5 6 1 Energy Cannon 3 | . . . 4 15 . . . . . . . . . . . . . . . 3 . . . 7 8 3 2 . Ballistic Gun 6 | . 24 16 11 5 18 17 17 2 . . . . 6 12 14 13 12 8 2 2 . . . . . . . . Naked Turns . | . . . . . . . . . . . . . . . . . . . . . . . . . . . . . Heaviest Build 113 | 13 29 29 73 65 64 69 63 67 21 18 19 18 54 64 74 74 74 71 95 113 100 94 8 74 80 67 68 90 Greatest Support 130 | 40 40 40 60 60 60 70 60 60 18 18 18 18 55 80 76 92 96 68 105 105 73 73 48 68 68 110 130 130 Greatest Overweight (x) 6 | . . . 1 1 1 1 1 3 1 . 1 . 6 4 . . . 1 1 2 2 3 2 1 1 . 1 1 Average Overweight (x) . | . . . . . 1 . . . . . . . . . . . . . . . 1 . . . . . . . Largest Inventory Capacity 20 | 8 15 15 20 20 20 20 20 20 10 10 10 10 20 20 20 20 20 20 20 20 20 20 5 5 5 5 5 10 Average Capacity 15 | 8 13 15 17 20 20 20 20 11 10 10 10 10 16 20 20 20 20 20 20 20 20 18 5 5 5 5 5 8 Most Carried 20 | 6 15 15 20 20 20 20 20 20 10 10 10 10 20 20 20 20 20 20 20 20 20 20 5 5 5 5 5 10 Average Carried 14 | 6 9 14 16 19 19 19 19 10 9 9 9 9 16 19 20 20 19 19 19 19 19 16 4 4 4 4 4 7 Final Capacity 20 | 8 15 15 20 20 20 20 20 10 10 10 10 10 20 20 20 20 20 20 20 20 20 5 5 5 5 5 5 5 Final Carried 20 | 6 15 15 20 20 20 20 19 10 10 10 10 10 19 20 20 20 20 20 20 20 20 5 5 5 5 5 5 5 Class Distribution -------------------- 49% | Scavenger-Mutant 32% | Mutant 15% | Derelict-Mutant Dominant Class ---------------- Mutant | -10/Materials Mutant | -10/Mines Scavenger-Mutant | -9/Materials Mutant | -9/Storage Mutant | -8/Materials Mutant | -8/Garrison Scavenger-Mutant | -8/Materials Mutant | -7/Factory Mutant | -7/Waste Mutant | -7/Factory Mutant | -7/Lower Caves Mutant | -7/Lower Caves Derelict-Mutant | -7/Zion Derelict-Mutant | -7/Deep Caves Derelict-Mutant | -6/Proximity Caves Derelict-Mutant | -6/Factory Scavenger-Mutant | -6/Garrison Scavenger-Mutant | -5/Factory Scavenger-Mutant | -5/Upper Caves Scavenger-Mutant | -5/Upper Caves Scavenger-Mutant | -5/Zhirov Scavenger-Mutant | -4/Proximity Caves Hacker-Mutant | -4/Factory Scavenger-Mutant | -4/Upper Caves Scavenger-Mutant | -4/Upper Caves Scavenger-Mutant | -4/Warlord Scavenger-Mutant | -3/Proximity Caves Scavenger-Mutant | -3/Research Resources | -11 -10 -10 -9 -9 -8 -8 -8 -7 -7 -7 -7 -7 -7 -7 -6 -6 -6 -5 -5 -5 -5 -4 -4 -4 -4 -4 -3 -3 ----------- Run | Jun Mat Min Mat Sto Mat Gar Mat Fac Was Fac Low Low Zio Dee Pro Fac Gar Fac Upp Upp Zhi Pro Fac Upp Upp War Pro Res Matter Collected 7074 | 220 335 88 364 733 195 962 408 90 125 67 70 90 140 400 150 . 513 257 249 259 93 144 155 279 181 252 140 115 Remotely . | . . . . . . . . . . . . . . . . . . . . . . . . . . . . . Salvage Created 14602 | . 581 278 930 1462 59 929 415 30 55 24 . 30 . 211 190 . 760 396 339 1385 260 163 142 793 1199 1624 1395 952 Parts 760 | . 35 17 69 85 3 67 25 4 2 1 . 1 . 11 18 . 58 21 24 66 16 3 11 32 35 58 40 58 Haulers Intercepted 9 | . . . 3 5 . . . . . 1 . . . . . . . . . . . . . . . . . . Recyclers Shooed 4 | . 1 1 . 2 . . . . . . . . . . . . . . . . . . . . . . . . Parts Field Recycled . | . . . . . . . . . . . . . . . . . . . . . . . . . . . . . Retrieved Matter . | . . . . . . . . . . . . . . . . . . . . . . . . . . . . . Parts Self-Destructed 191 | . . . . . . . . . . . 12 19 . . 18 . . . 15 61 8 3 . 19 6 . 30 . Prevented 50 | . . . . . . . . . . . . . . . . . . . . 8 . . . 9 23 . 10 . Kills | -11 -10 -10 -9 -9 -8 -8 -8 -7 -7 -7 -7 -7 -7 -7 -6 -6 -6 -5 -5 -5 -5 -4 -4 -4 -4 -4 -3 -3 ------- Run | Jun Mat Min Mat Sto Mat Gar Mat Fac Was Fac Low Low Zio Dee Pro Fac Gar Fac Upp Upp Zhi Pro Fac Upp Upp War Pro Res Combat Hostiles Destroyed 262 | . 15 9 23 28 1 27 12 1 . . . . . 2 3 . 17 4 4 26 . 5 1 10 17 20 24 13 Melee 19 | . . . . . . . . . . . . . . . . . . 1 . . . . . 4 1 . . 13 Guns 121 | . 15 9 16 7 1 16 10 . . . . . . 2 3 . 5 3 4 16 . . . . . 3 11 . Cannons 35 | . . . 2 8 . . . . . . . . . . . . . . . 7 . . . 1 8 5 4 . AOE 52 | . . . 5 10 . 11 2 1 . . . . . . . . 11 . . . . . . . 3 4 5 . Classes Destroyed 24 | . 4 1 3 4 . 4 . . . . . 1 . 2 . . . . . 2 . . . 1 . 2 . . Worker 7 | . . 1 2 1 . . . . . . . . . . . . . 1 . . . . . . . . . 2 Builder 5 | . . . 1 3 . . . . . . . . . . . . . . . . . . 1 . . . . . Hauler 9 | . . . 3 5 . . . . . 1 . . . . . . . . . . . . . . . . . . Minesweeper 2 | . . . . . . . . . . . . . . . . . . . . 1 . . . 1 . . . . Mechanic 2 | . . . . 1 . . . . . . . . . . . . . . . . . . 1 . . . . . Operator 6 | . 1 . . 3 . . 1 . . . . . . . . . . . . . . . 1 . . . . . Watcher 8 | . 1 . 4 2 . 1 . . . . . . . . . . . . . . . . . . . . . . Swarmer 67 | . 3 9 9 3 . 4 6 . . . . . . . . . 7 . . 8 . 2 . 1 4 . 11 . Cutter 7 | . . . . . . 2 . . . . . . . . . . 4 1 . . . . . . . . . . Grunt 106 | . 12 . 9 13 . 11 3 1 . . . . . . . . 1 . 1 9 . 2 . 2 11 15 11 5 Brawler 4 | . . . . 2 . . . . . . . . . . . . . . . . . . . . . 2 . . Duelist 5 | . . . . 1 . . . . . . . . . . . . . . . 2 . . . 1 . . . 1 Protector 3 | . . . . 1 . . . . . . . . . . . . . . . 1 . . . . . 1 . . Sentry 36 | . . . 5 8 1 5 3 . . . . . . . . . 2 4 1 2 . 1 . 1 1 . 1 1 Hunter 9 | . . . . . . 1 . . . . . . . . 2 . 1 . . . . . 1 2 . . . 2 Programmer 15 | . . . . . . 3 . . . . . . . . 1 . 1 . . 2 . . . 3 1 . . 4 Behemoth 4 | . . . . . . 1 . . . . . . . . . . 1 . . 1 . . . . . . 1 . Enhanced Grunt 1 | . . . . . . . . . . . . . . 1 . . . . . . . . . . . . . . Striker 1 | . . . . . . . . . . . . . . . . . . . . . . . . . . 1 . . Executioner 1 | . . . . . . . . . . . . . . . . . . . . . . . . . . 1 . . Z-Technician 2 | . . . . . . . . . . . . . . 2 . . . . . . . . . . . . . . Z-Light 1 | . . . . . . . . . . . . . . 1 . . . . . . . . . . . . . . Samaritan 1 | . . . . . . . . . . . . . . . . . . . . . . . . 1 . . . . Tinkerer 1 | . . . . . . . . . . . . 1 . . . . . . . . . . . . . . . . Assembled 1 | . . . . . . . . . . . . . . 1 . . . . . . . . . . . . . . Thug 2 | . . . . . . . . . . . . . . . . . . . 2 . . . . . . . . . Guerrilla 1 | . . . . . . . . . . . . . . . . . . . 1 . . . . . . . . . Mutant 3 | . . . . . . . . . . . . . . . . . . . . 1 . . . 1 1 . . . Commander 1 | . . . . . . . . . . . . . . . . . . . 1 . . . . . . . . . Best Kill Streak 11 | . 5 3 6 10 1 5 3 1 . 1 . . . 1 3 . 11 1 2 4 . 5 2 4 4 9 6 4 Combat Bots Only 16 | . 5 3 4 9 1 5 3 1 . . . . . 1 3 . 11 1 2 4 . 5 1 3 4 16 6 4 Max Kills in Single Turn 6 | . 1 2 3 6 1 4 2 1 . 1 . 1 . 1 1 . 4 1 1 1 . 1 1 1 2 3 4 1 Gunslinging . | . . . . . . . . . . . . . . . . . . . . . . . . . . . . . Exploded 5 | . . . 3 5 . 4 2 1 . . . . . . . . 4 . . . . . . . 2 2 4 . Melee 1 | . . . . . . . . . . . . . . . . . . 1 . . . . . 1 1 . . 1 Uniques/NPCs Destroyed 3 | . . 1 . 1 . . . . . . . . . 1 . . . . . . . . . . . . . . YI-UF0 (-10/Mines) 01-MTF (-9/Storage) Z-Imprinter (-7/Deep Caves) Combat | -11 -10 -10 -9 -9 -8 -8 -8 -7 -7 -7 -7 -7 -7 -7 -6 -6 -6 -5 -5 -5 -5 -4 -4 -4 -4 -4 -3 -3 -------- Run | Jun Mat Min Mat Sto Mat Gar Mat Fac Was Fac Low Low Zio Dee Pro Fac Gar Fac Upp Upp Zhi Pro Fac Upp Upp War Pro Res Damage Taken 24070 | . 494 299 740 871 148 2178 533 180 . 40 41 . . . 292 16 2366 535 537 2115 . 1911 1226 862 1258 551 1815 5062 Core 3555 | . 79 71 72 113 15 287 93 74 . . 41 . . . 32 . 224 23 32 172 . 451 198 61 44 63 98 1312 Absorbed by Shields 1993 | . . . . . . 706 . . . . . . . . . . 45 . . 300 . . . . . 146 208 588 Reduced by Siege Mode 49 | . . . . . . . . . . . . . . . . . . . . . . . . . . . 49 . Redirected to Shielding 101 | . . . . . . . . 27 . . . . . . . . . . . 29 . 45 . . . . . . Regen/Repaired (Parts) 1123 | . 170 . . . 226 . . . . . . . . . . 192 . . . . . . . . . 535 . . Core Remaining (%) 57 | 100 . 40 . 53 . . 28 . . . . . . . 79 . 73 . . . . 24 . . . . 59 . Volleys Fired 816 | . 57 30 70 91 7 80 32 3 . 2 . 8 . 51 11 . 38 21 47 86 7 16 15 23 31 45 45 . Largest 2 | . 2 2 2 2 2 2 2 1 . 1 . 1 . 1 2 . 2 2 2 2 1 1 1 2 2 2 2 . Hottest 162 | . 85 85 98 143 46 70 70 35 . 33 . 35 . 80 68 . 68 114 114 160 20 . 81 162 162 146 156 . Shots Fired 1417 | . 114 60 132 176 14 146 63 3 . 2 . 8 . 51 20 . 59 39 56 171 7 16 15 33 63 87 82 . Gun 1056 | . 114 60 121 80 14 135 62 3 . . . 8 . 37 20 . 55 39 42 133 . . 9 8 1 45 70 . Cannon 286 | . . . 9 92 . . . . . . . . . . . . . . . 38 . . 6 25 62 42 12 . Launcher 24 | . . . 2 4 . 11 1 . . 2 . . . . . . 4 . . . . . . . . . . . Special 51 | . . . . . . . . . . . . . . 14 . . . . 14 . 7 16 . . . . . . Kinetic 699 | . 112 40 68 80 14 135 62 3 . . . 8 . 34 17 . 55 37 19 15 . . . . . . . . Thermal 428 | . 2 20 62 92 . . . . . . . . . 14 . . . 2 23 156 7 . . . . . 50 . Explosive 24 | . . . 2 4 . 11 1 . . 2 . . . . . . 4 . . . . . . . . . . . Electromagnetic 203 | . . . . . . . . . . . . . . . . . . . . . . . 6 25 63 85 24 . Phasic 47 | . . . . . . . . . . . . . . 3 3 . . . 14 . . . 9 8 . 2 8 . Robot Hit Streak 29 | . 10 8 15 28 7 29 19 . . . . 22 . 10 12 . 14 9 16 17 6 8 3 10 11 14 25 . Robot Miss Streak 5 | . 3 5 2 2 1 2 4 . . . . 1 . 3 1 . 2 1 3 3 1 2 3 3 4 3 2 . Penetration Max 1 | . . . . . . . . . . . . . . 1 . . 1 1 . . . . . . . . . . Secondary Targets 18 | . 1 3 . . . 1 2 . . . . . . . . . . 1 1 5 . . . . . . 4 . Max Gunslinging Chain 1 | . 1 1 . . . 1 1 . . . . . . . . . . 1 1 1 . . . . . . 1 . Shots Hit Robots 1121 | . 84 28 87 141 12 124 48 . 2 4 . 8 . 26 13 . 52 32 33 133 6 11 6 30 50 66 66 59 Core Hits 543 | . 36 18 52 67 2 60 24 1 1 1 . 3 . 10 5 . 41 11 14 53 4 . 3 13 24 34 38 28 Critical Kills 17 | . . . . 1 . . 1 . 1 . . . . 3 3 . 6 2 . . . . . . . . . . Critical Parts Destroyed 34 | . . . . 2 . . 2 . . . . 2 . 5 6 . 13 3 . 1 . . . . . . . . Critical Strikes 89 | . . . . 3 . . 3 . 1 . . 2 . 8 9 . 19 6 . 15 . . 1 3 2 3 6 8 Burn 20 | . . . . . . . . . . . . . . . . . . . . 14 . . . . . . 6 . Meltdown 1 | . . . . 1 . . . . . . . . . . . . . . . . . . . . . . . . Destroy 48 | . . . . . . . 3 . . . . 2 . 8 9 . 19 6 . 1 . . . . . . . . Corrupt 5 | . . . . . . . . . . . . . . . . . . . . . . . . 1 1 3 . . Smash 3 | . . . . 2 . . . . 1 . . . . . . . . . . . . . . . . . . . Sever 7 | . . . . . . . . . . . . . . . . . . . . . . . . . . . . 7 Impale 5 | . . . . . . . . . . . . . . . . . . . . . . . 1 2 1 . . 1 Melee Attacks 194 | . . . . 12 . 11 . . 2 5 8 2 10 . . . 11 3 . 1 . . 3 12 9 14 1 90 Impact 47 | . . . . 11 . 11 . . 2 5 8 1 9 . . . . . . . . . . . . . . . Slashing 68 | . . . . . . . . . . . . . . . . . 3 3 . . . . . . . . . 62 Piercing 78 | . . . . . . . . . . . . 1 1 . . . 8 . . 1 . . 3 12 9 14 1 28 Sneak Attacks 7 | . . . . 1 . . . . . . . 1 . . . . . . . . . . 2 . 2 . . 1 Combat Hostiles . | . . . . . . . . . . . . . . . . . . . . . . . . . . . . . Follow-up Attacks 13 | . . . . . . . . . . . . . . . . . . . . . . . . . . . . 13 Damage Inflicted 28347 | . 864 378 1437 3818 186 3244 869 199 152 298 . 111 . 260 77 7 1372 568 629 3083 118 . 307 1212 2278 2495 1996 2389 Guns 12298 | . 851 347 969 1046 186 1793 778 . . . . 51 . 115 77 . 433 485 401 2302 . . 33 165 . 912 1354 . Cannons 6020 | . . . 187 1591 . . . . . . . . . . . . . . . 781 . . 70 583 1464 1069 275 . Explosions 5092 | . . . 246 982 . 1224 91 199 . 53 . . . . . . 769 . . . . . . 145 502 514 367 . Melee 4301 | . . . . 198 . 224 . . 152 245 . 60 . . . . 133 83 . . . . 204 312 312 . . 2378 Ramming 145 | . 13 31 35 1 . 3 . . . . . . . . . 7 37 . . . . . . 7 . . . 11 Kinetic 6969 | . 824 216 456 1046 186 1793 778 . . . . 51 . 115 77 . 433 437 281 276 . . . . . . . . Thermal 8457 | . 27 131 700 1591 . . . . . . . . . 145 . . . 48 348 2807 118 . . 145 502 514 1381 . Explosive 3564 | . . . 246 982 . 1224 91 199 . 53 . . . . . . 769 . . . . . . . . . . . Electromagnetic 4548 | . . . . . . . . . . . . . . . . . . . . . . . 70 583 1464 1981 450 . Impact 819 | . . . . 198 . 224 . . 152 245 . . . . . . . . . . . . . . . . . . Slashing 1566 | . . . . . . . . . . . . . . . . . . 83 . . . . . . . . . 1483 Piercing 1916 | . . . . . . . . . . . . 60 . . . . 133 . . . . . 204 312 312 . . 895 Phasic 363 | . . . . . . . . . . . . . . . . . . . . . . . 33 165 . . 165 . Highest Corruption 17 | . . . . . . 3 3 3 2 . . . . . 1 1 2 . . 2 2 . 6 7 8 8 . 17 Average Corruption 3 | . . . . . . 2 3 2 1 . . . . . 1 1 1 . . 1 1 . 5 2 7 8 . 14 Corruption Purged 10 | . . . . . . . . 1 2 . . . . . . . . . . . 2 . . 5 . . . . Corruption Blocked . | . . . . . . . . . . . . . . . . . . . . . . . . . . . . . Effects 152 | . . . . . . 18 11 . . . . . . . 9 . 12 . . 9 2 . 1 25 58 2 . 5 Message Errors 49 | . . . . . . 8 2 . . . . . . . 2 . 2 . . 3 . . . 10 19 . . 3 Matter Fused 27 | . . . . . . 2 3 . . . . . . . . . 4 . . . . . . 5 12 1 . . Heat Flow Errors 18 | . . . . . . 1 4 . . . . . . . 2 . . . . . . . . 4 6 . . 1 Energy Discharges 19 | . . . . . . 1 2 . . . . . . . 1 . 2 . . 2 1 . . 2 7 1 . . Parts Rejected 1 | . . . . . . . . . . . . . . . . . . . . . . . 1 . . . . . Data Loss (minor) 15 | . . . . . . 2 . . . . . . . . 1 . 2 . . 2 . . . . 8 . . . Data Loss (major) 6 | . . . . . . . . . . . . . . . 2 . 1 . . . 1 . . 1 1 . . . Misfires 5 | . . . . . . . . . . . . . . . 1 . . . . 1 . . . 1 2 . . . Alerts 7 | . . . . . . 2 . . . . . . . . . . . . . 1 . . . 2 2 . . . Misdirections 1 | . . . . . . . . . . . . . . . . . . . . . . . . . . . . 1 Weapon Failures 4 | . . . . . . 2 . . . . . . . . . . 1 . . . . . . . 1 . . . Overload Shots . | . . . . . . . . . . . . . . . . . . . . . . . . . . . . . Overflow Damage 555 | . . . . 134 . 28 . 49 . 36 . 35 . 5 . . 35 . . 49 24 . 28 17 61 5 22 27 Projectiles 149 | . . . . 15 . . . . . . . . . 5 . . . . . 49 24 . . 17 34 5 . . Explosions 160 | . . . . 26 . 28 . 49 . . . . . . . . 35 . . . . . . . . . 22 . Melee 246 | . . . . 93 . . . . . 36 . 35 . . . . . . . . . . 28 . 27 . . 27 Knockbacks 3 | . . . . 3 . . . . . . . . . . . . . . . . . . . . . . . . Impact 3 | . . . . 3 . . . . . . . . . . . . . . . . . . . . . . . . Kinetic . | . . . . . . . . . . . . . . . . . . . . . . . . . . . . . Secondary . | . . . . . . . . . . . . . . . . . . . . . . . . . . . . . Self-Inflicted Damage 353 | . . . . 4 . 108 18 . . . . . . . . . 33 . . . . . . 47 57 . 86 . Shots 14 | . . . . 1 . 7 1 . . . . . . . . . 2 . . . . . . 1 1 . 1 . Rammed 17 | . 4 7 3 1 . 2 . . . . . . . . . . . . . . . . . . . . . . Targets Rammed 28 | . 4 7 10 1 . 2 . . . . . . . . . 1 1 . . . . . . 1 . . . 1 Kicked 7 | . . . 4 . . . . . . . . . . . . 1 1 . . . . . . 1 . . . . Crushed 4 | . . . 3 . . . . . . . . . . . . . . . . . . . . . . . . 1 Highest Temperature 371 | . 68 300 213 371 2 166 274 10 . 4 . . . 24 105 . 12 132 360 108 . . . 234 252 119 126 206 Average Temperature 66 | . 13 89 62 84 2 36 131 5 . 4 . . . 16 36 . 5 67 141 32 . . . 67 88 38 48 128 Received Heat Transfer 4583 | . 270 . 177 333 54 384 153 90 . . . . . . . . 350 18 180 295 . 390 72 45 219 158 264 1131 Effects 4 | . . 3 . . . . . . . . . . . . . . . . 1 . . . . . . . . . Energy Bleed 1 | . . . . . . . . . . . . . . . . . . . 1 . . . . . . . . . Interference 3 | . . 3 . . . . . . . . . . . . . . . . . . . . . . . . . . Siege Activations 2 | . . . . . . . . . . . . . . . . . . . . . . . . . . . 2 . Total Turns 61 | . . . . . . . . . . . . . . . . . . . . . . . . . . . 61 . Longest Duration 36 | . . . . . . . . . . . . . . . . . . . . . . . . . . . 36 . Robots Corrupted 20 | . . . . . . . . . . . . . . . . . . . . . . . 1 5 5 8 1 . Combat Hostiles 20 | . . . . . . . . . . . . . . . . . . . . . . . 1 5 5 8 1 . Parts Fried 43 | . . . . 3 . . . . . . . . . . . . . . . 1 . . 3 10 10 13 3 . Impact Corruptions 4 | . . . . 3 . . . . . 1 . . . . . . . . . . . . . . . . . . Robots Melted 5 | . . . . 1 . . . . . . . . . . . . . . . 2 . . . . . . 2 . Combat Hostiles 5 | . . . . 1 . . . . . . . . . . . . . . . 2 . . . . . . 2 . Parts Melted 29 | . . 1 1 3 . . . . . . . . . . . . . . 1 10 . . . . . . 13 . Heat Transferred 14937 | . 74 296 1480 2461 . . . . . . . . . 1040 . . . 74 703 4918 259 . . 100 300 400 2832 . Parts Sabotaged . | . . . . . . . . . . . . . . . . . . . . . . . . . . . . . Parts Stolen . | . . . . . . . . . . . . . . . . . . . . . . . . . . . . . Parts Stripped . | . . . . . . . . . . . . . . . . . . . . . . . . . . . . . Power Chain Reactions 9 | . . . . . . . . . . . . . . . . . . . . . . . 1 1 4 2 1 . Missiles Intercepted . | . . . . . . . . . . . . . . . . . . . . . . . . . . . . . Alert | -11 -10 -10 -9 -9 -8 -8 -8 -7 -7 -7 -7 -7 -7 -7 -6 -6 -6 -5 -5 -5 -5 -4 -4 -4 -4 -4 -3 -3 ------- Run | Jun Mat Min Mat Sto Mat Gar Mat Fac Was Fac Low Low Zio Dee Pro Fac Gar Fac Upp Upp Zhi Pro Fac Upp Upp War Pro Res Peak Influence 1187 | . 403 228 405 918 430 1187 772 675 236 519 . . . . . 18 703 553 . . . . 242 . . . . 282 Initial 578 | . . 33 . 155 387 149 578 271 236 165 . . . . . . 12 368 . . . . 9 . . . . 125 Average 389 | . 192 77 260 469 374 717 606 375 236 395 . . . . . 9 483 458 . . . . 73 . . . . 134 Maximum Alert Level 4 | . 2 1 2 3 2 4 3 2 1 2 . . . . . . 3 2 . . . . 1 . . . . 1 Low Security (%) 25 | 100 49 83 18 11 . 4 . . . 21 . . . . . 100 14 . . . . . 90 . . . . 70 Level 1 28 | . 50 16 79 14 45 25 . 67 100 16 . . . . . . . 33 . . . . 9 . . . . 29 Level 2 34 | . . . 2 61 54 12 83 32 . 62 . . . . . . 82 66 . . . . . . . . . . Level 3 10 | . . . . 13 . 51 16 . . . . . . . . . 1 . . . . . . . . . . . Level 4 . | . . . . . . 5 . . . . . . . . . . . . . . . . . . . . . . Level 5 . | . . . . . . . . . . . . . . . . . . . . . . . . . . . . . High Security . | . . . . . . . . . . . . . . . . . . . . . . . . . . . . . Max Security . | . . . . . . . . . . . . . . . . . . . . . . . . . . . . . Squads Dispatched 36 | . 5 . 3 7 . . 1 5 . 2 . 1 . . . 3 . 2 . 1 . 1 2 . . . . 3 Investigation 17 | . 4 . 2 1 . . . 5 . 1 . 1 . . . 2 . . . . . . 1 . . . . . Extermination 2 | . . . . . . . . . . . . . . . . 1 . . . . . . . . . . . 1 Reinforcement 10 | . 1 . 1 3 . . 1 . . 1 . . . . . . . . . . . . 1 . . . . 2 Assault 5 | . . . . 3 . . . . . . . . . . . . . . . 1 . 1 . . . . . . Garrison 2 | . . . . . . . . . . . . . . . . . . 2 . . . . . . . . . . Intercept . | . . . . . . . . . . . . . . . . . . . . . . . . . . . . . Searches Triggered . | . . . . . . . . . . . . . . . . . . . . . . . . . . . . . Construction Impeded . | . . . . . . . . . . . . . . . . . . . . . . . . . . . . . Haulers Reinforced 1 | . . . . . . . . . . 1 . . . . . . . . . . . . . . . . . . Active Scanning Responses . | . . . . . . . . . . . . . . . . . . . . . . . . . . . . . Cargo Convoy Interrupts . | . . . . . . . . . . . . . . . . . . . . . . . . . . . . . Stealth | -11 -10 -10 -9 -9 -8 -8 -8 -7 -7 -7 -7 -7 -7 -7 -6 -6 -6 -5 -5 -5 -5 -4 -4 -4 -4 -4 -3 -3 --------- Run | Jun Mat Min Mat Sto Mat Gar Mat Fac Was Fac Low Low Zio Dee Pro Fac Gar Fac Upp Upp Zhi Pro Fac Upp Upp War Pro Res Distress Signals 19 | . 2 . 6 6 . 1 1 1 . . . . . . . . . . . . . . . . . 1 . 1 Communications Jammed . | . . . . . . . . . . . . . . . . . . . . . . . . . . . . . Distress Signals . | . . . . . . . . . . . . . . . . . . . . . . . . . . . . . Times Spotted 463 | . 31 9 38 53 1 31 17 19 . 4 9 2 . 8 3 1 29 5 11 38 . 12 13 11 20 46 30 22 Peak Tracking Total 18 | . 6 3 6 8 1 5 3 10 . 4 4 2 . 4 3 1 18 2 4 8 . 4 9 2 4 11 8 5 Tactical Retreats 31 | . 2 . 1 4 . . 2 5 . . . . . . . . 2 . . 2 . 2 3 1 2 . 2 3 Traps | -11 -10 -10 -9 -9 -8 -8 -8 -7 -7 -7 -7 -7 -7 -7 -6 -6 -6 -5 -5 -5 -5 -4 -4 -4 -4 -4 -3 -3 ------- Run | Jun Mat Min Mat Sto Mat Gar Mat Fac Was Fac Low Low Zio Dee Pro Fac Gar Fac Upp Upp Zhi Pro Fac Upp Upp War Pro Res Traps Triggered 19 | . 1 . 1 3 . 2 . 3 . . . . . . . . 6 1 . . . . 2 . . . . . Indirectly . | . . . . . . . . . . . . . . . . . . . . . . . . . . . . . Trap Hack Attempts 106 | . 51 . . 55 . . . . . . . . . . . . . . . . . . . . . . . . Triggered . | . . . . . . . . . . . . . . . . . . . . . . . . . . . . . Disarmed 1 | . . . . 1 . . . . . . . . . . . . . . . . . . . . . . . . Reprogrammed 11 | . 4 . . 7 . . . . . . . . . . . . . . . . . . . . . . . . Reused 6 | . . . . 1 . . . . . . . . . . . . . . 2 2 . . . 1 . . . . Traps Extracted . | . . . . . . . . . . . . . . . . . . . . . . . . . . . . . Installed 8 | . . . . . . . . . . . . . . . . . . . 2 4 . . . 2 . . . . Triggered 19 | . . . . 2 . . . . . . . . . . . . . . 1 3 . . . 5 . 6 2 . Most Traps Carried 3 | . . . . . . . . . . . . . . . . . 3 2 2 . . . . 1 . . . . Machines | -11 -10 -10 -9 -9 -8 -8 -8 -7 -7 -7 -7 -7 -7 -7 -6 -6 -6 -5 -5 -5 -5 -4 -4 -4 -4 -4 -3 -3 ---------- Run | Jun Mat Min Mat Sto Mat Gar Mat Fac Was Fac Low Low Zio Dee Pro Fac Gar Fac Upp Upp Zhi Pro Fac Upp Upp War Pro Res Machines Disabled 24 | . . . 1 6 . 1 . 2 . 2 3 2 . 1 . . . . 1 2 . . . . . 1 2 . Max in Single Turn 2 | . . . 1 1 . 1 . 2 . . 1 1 . . . . . . . 1 . . . . . 1 2 . Garrison Access 2 | . . . . . . . 1 . . . . . . . . . . . . . . . 1 . . . . . Garrison Relay 1 | . . . . . . 1 . . . . . . . . . . . . . . . . . . . . . . Machines Repaired . | . . . . . . . . . . . . . . . . . . . . . . . . . . . . . Machines Sabotaged . | . . . . . . . . . . . . . . . . . . . . . . . . . . . . . Overloaded Fab Kills 3 | . . . . . . . . . . . . . . . . . . . . . . . 3 . . . . . Hacking | -11 -10 -10 -9 -9 -8 -8 -8 -7 -7 -7 -7 -7 -7 -7 -6 -6 -6 -5 -5 -5 -5 -4 -4 -4 -4 -4 -3 -3 --------- Run | Jun Mat Min Mat Sto Mat Gar Mat Fac Was Fac Low Low Zio Dee Pro Fac Gar Fac Upp Upp Zhi Pro Fac Upp Upp War Pro Res Machines Accessed 73 | . 7 . 6 3 2 4 6 5 . 4 3 2 . . . 4 2 2 2 . 6 . 6 . . 7 1 1 Terminals 35 | . 5 . 3 3 . 4 4 4 . 1 1 1 . . . 1 2 1 . . . . 3 . . . 1 1 Fabricators 5 | . . . . . . . . 1 . 1 . . . . . 1 . 1 . . . . 1 . . . . . Repair Stations 6 | . 1 . 1 . 1 . . . . 1 . . . . . 1 . . . . . . 1 . . . . . Recycling Units 3 | . 1 . 1 . . . . . . 1 . . . . . . . . . . . . . . . . . . Scanalyzers 2 | . . . 1 . . . 1 . . . . . . . . . . . . . . . . . . . . . Garrison Access 4 | . . . . . 1 . 1 . . . . . . . . 1 . . . . . . 1 . . . . . Total Hacks 209 | . 17 . 22 6 11 8 15 19 . 12 6 5 . . . 10 4 4 11 . 19 . 20 . . 13 3 4 Successful 127 | . 8 . 11 . 9 3 7 4 . 7 6 5 . . . 5 3 3 11 . 19 . 7 . . 13 3 3 Failed 81 | . 8 . 11 6 2 5 8 15 . 5 . . . . . 5 1 1 . . . . 13 . . . . 1 Catastrophic 21 | . 1 . 2 2 . 1 1 8 . 1 . . . . . 1 . . . . . . 3 . . . . 1 Database Lockouts 1 | . 1 . . . . . . . . . . . . . . . . . . . . . . . . . . . Manual 75 | . 10 . 14 . . 2 7 16 . 6 . . 1 . . 3 2 . . 1 . . 9 . . . . 4 Terminals 103 | . 11 . 14 6 . 8 10 15 . 4 4 4 . . . 2 4 1 . . . . 13 . . . 3 4 Fabricators 15 | . . . . . . . . 4 . 3 . . . . . 3 . 3 . . . . 2 . . . . . Repair Stations 22 | . 4 . 1 . 9 . . . . 3 . . . . . 3 . . . . . . 2 . . . . . Recycling Units 8 | . 2 . 4 . . . . . . 2 . . . . . . . . . . . . . . . . . . Scanalyzers 6 | . . . 3 . . . 3 . . . . . . . . . . . . . . . . . . . . . Garrison Access 9 | . . . . . 2 . 2 . . . . . . . . 2 . . . . . . 3 . . . . . Terminal Hacks 76 | . 2 . 4 . . 2 2 1 . 1 6 5 . . . . 2 1 11 . 19 . 2 . . 13 3 2 Record 38 | . . . . . . . . . . . 5 4 . . . . . . 10 . 7 . . . . 9 3 . Part Schematic 4 | . . . . . . . . . . . . . . . . . . . . . 4 . . . . . . . Robot Schematic 1 | . . . . . . . . . . 1 . . . . . . . . . . . . . . . . . . Robot Analysis 8 | . 1 . 3 . . . . . . . . . . . . . . . . . 4 . . . . . . . Prototype ID Bank 10 | . 1 . . . . . 1 . . . . . . . . . . . . . 4 . . . . 4 . . Open Door 4 | . . . . . . 1 . . . . 1 1 . . . . . . 1 . . . . . . . . . Open DSF 1 | . . . . . . . . . . . . . . . . . . 1 . . . . . . . . . . Branch Access Points 3 | . . . 1 . . . . 1 . . . . . . . . . . . . . . 1 . . . . . Emergency Access Points 1 | . . . . . . . . . . . . . . . . . 1 . . . . . . . . . . . Unreport Threat 3 | . . . . . . . 1 . . . . . . . . . . . . . . . . . . . . 2 Locate Traps 1 | . . . . . . . . . . . . . . . . . . . . . . . 1 . . . . . Garrison Registry 1 | . . . . . . 1 . . . . . . . . . . . . . . . . . . . . . . Patrol Navigation 1 | . . . . . . . . . . . . . . . . . 1 . . . . . . . . . . . Fabricator Hacks 6 | . . . . . . . . 1 . 2 . . . . . 1 . 2 . . . . . . . . . . Network Status 1 | . . . . . . . . 1 . . . . . . . . . . . . . . . . . . . . Load Schematic 3 | . . . . . . . . . . 1 . . . . . 1 . 1 . . . . . . . . . . Build 2 | . . . . . . . . . . 1 . . . . . . . 1 . . . . . . . . . . Repair Station Hacks 17 | . 4 . 1 . 8 . . . . 1 . . . . . 2 . . . . . . 1 . . . . . Scan Component 8 | . 2 . . . 4 . . . . 1 . . . . . 1 . . . . . . . . . . . . Repair 7 | . 2 . . . 4 . . . . . . . . . . 1 . . . . . . . . . . . . Refit 2 | . . . 1 . . . . . . . . . . . . . . . . . . . 1 . . . . . Recycling Unit Hacks 3 | . 1 . 1 . . . . . . 1 . . . . . . . . . . . . . . . . . . Retrieve Components 3 | . 1 . 1 . . . . . . 1 . . . . . . . . . . . . . . . . . . Scanalyzer 5 | . . . 3 . . . 2 . . . . . . . . . . . . . . . . . . . . . Insert Component 2 | . . . 1 . . . 1 . . . . . . . . . . . . . . . . . . . . . Analyze 3 | . . . 2 . . . 1 . . . . . . . . . . . . . . . . . . . . . Garrison Access Hacks 4 | . . . . . 1 . 1 . . . . . . . . 1 . . . . . . 1 . . . . . Unlock Access 2 | . . . . . 1 . . . . . . . . . . 1 . . . . . . . . . . . . Seal Access 2 | . . . . . . . 1 . . . . . . . . . . . . . . . 1 . . . . . Unauthorized Hacks 16 | . 1 . 2 . . 1 2 2 . 2 . . . . . 1 1 . . . . . 3 . . . . 1 Terminals 9 | . . . 1 . . 1 2 1 . . . . . . . . 1 . . . . . 2 . . . . 1 Botnet 8 | . . . 1 . . 1 2 1 . . . . . . . . 1 . . . . . 1 . . . . 1 Disrupt 1 | . . . . . . . . . . . . . . . . . . . . . . . 1 . . . . . Fabricators 3 | . . . . . . . . 1 . 1 . . . . . . . . . . . . 1 . . . . . Liberate 1 | . . . . . . . . . . 1 . . . . . . . . . . . . . . . . . . Overload 2 | . . . . . . . . 1 . . . . . . . . . . . . . . 1 . . . . . Repair Stations . | . . . . . . . . . . . . . . . . . . . . . . . . . . . . . Recycling Units 3 | . 1 . 1 . . . . . . 1 . . . . . . . . . . . . . . . . . . Reject 1 | . . . . . . . . . . 1 . . . . . . . . . . . . . . . . . . Tunnel 2 | . 1 . 1 . . . . . . . . . . . . . . . . . . . . . . . . . Scanalyzers . | . . . . . . . . . . . . . . . . . . . . . . . . . . . . . Garrison Access 1 | . . . . . . . . . . . . . . . . 1 . . . . . . . . . . . . Reprogram 1 | . . . . . . . . . . . . . . . . 1 . . . . . . . . . . . . Data Cores Recovered . | . . . . . . . . . . . . . . . . . . . . . . . . . . . . . Used . | . . . . . . . . . . . . . . . . . . . . . . . . . . . . . Hacking Detections 47 | . 5 . 5 3 2 4 6 4 . 4 1 1 . . . 3 2 1 . . . . 4 . . . 1 1 Full Trace Events 16 | . 3 . 1 1 . 1 2 4 . 1 1 1 . . . 1 . . . . . . . . . . . . Feedback Events . | . . . . . . . . . . . . . . . . . . . . . . . . . . . . . Feedback Blocked . | . . . . . . . . . . . . . . . . . . . . . . . . . . . . . Robot Schematics Acquired 5 | . . . . . . . . . . 1 . . 4 . . . . . . . . . . . . . . . Robots Built 5 | . . . . . . . . . . 2 . . . . . . . 3 . . . . . . . . . . Authchips 2 | . . . . . . . . . . 1 . . . . . . . 1 . . . . . . . . . . Time 141 | . . . . . . . . . . 67 . . . . . . . 74 . . . . . . . . . . Total Robot Build Rating 35 | . . . . . . . . . . 8 . . . . . . . 27 . . . . . . . . . . Part Schematics Acquired 21 | . . . 1 . . . 1 . . . . . 15 . . . . . . . 4 . . . . . . . Parts Built . | . . . . . . . . . . . . . . . . . . . . . . . . . . . . . Authchips . | . . . . . . . . . . . . . . . . . . . . . . . . . . . . . Time . | . . . . . . . . . . . . . . . . . . . . . . . . . . . . . Total Part Build Rating . | . . . . . . . . . . . . . . . . . . . . . . . . . . . . . Parts Repaired 7 | . 2 . . . 4 . . . . . . . . . . 1 . . . . . . . . . . . . Time 229 | . 52 . . . 152 . . . . . . . . . . 25 . . . . . . . . . . . . Parts Recycled . | . . . . . . . . . . . . . . . . . . . . . . . . . . . . . Recycled Matter . | . . . . . . . . . . . . . . . . . . . . . . . . . . . . . Retrieved Matter . | . . . . . . . . . . . . . . . . . . . . . . . . . . . . . Retrieved Components 5 | . 3 . 1 . . . . . . 1 . . . . . . . . . . . . . . . . . . Parts Scanalyzed 2 | . . . 1 . . . 1 . . . . . . . . . . . . . . . . . . . . . Part Schematics Acquired 2 | . . . 1 . . . 1 . . . . . . . . . . . . . . . . . . . . . Parts Damaged 1 | . . . . . . . 1 . . . . . . . . . . . . . . . . . . . . . Bothacking | -11 -10 -10 -9 -9 -8 -8 -8 -7 -7 -7 -7 -7 -7 -7 -6 -6 -6 -5 -5 -5 -5 -4 -4 -4 -4 -4 -3 -3 ------------ Run | Jun Mat Min Mat Sto Mat Gar Mat Fac Was Fac Low Low Zio Dee Pro Fac Gar Fac Upp Upp Zhi Pro Fac Upp Upp War Pro Res Used RIF Installer . | . . . . . . . . . . . . . . . . . . . . . . . . . . . . . Robots Hacked 1 | . . . . 1 . . . . . . . . . . . . . . . . . . . . . . . . Non-combat . | . . . . . . . . . . . . . . . . . . . . . . . . . . . . . Combat 1 | . . . . 1 . . . . . . . . . . . . . . . . . . . . . . . . Robot Hacks Applied 1 | . . . . 1 . . . . . . . . . . . . . . . . . . . . . . . . parse_system 1 | . . . . 1 . . . . . . . . . . . . . . . . . . . . . . . . Relay Couplers Released 9 | . . . . . . 5 . . . . . . . . . . 4 . . . . . . . . . . . Machine Destruction 5 | . . . . . . 5 . . . . . . . . . . . . . . . . . . . . . . Programmers 4 | . . . . . . . . . . . . . . . . . 4 . . . . . . . . . . . Fabnet Peak Effective % . | . . . . . . . . . . . . . . . . . . . . . . . . . . . . . Robots Rewired 7 | . . . . . . . . . . . . . . . . . . 1 . 2 . 1 . . . 3 . . Allies Hacked . | . . . . . . . . . . . . . . . . . . . . . . . . . . . . . Hacks Repelled . | . . . . . . . . . . . . . . . . . . . . . . . . . . . . . Allies | -11 -10 -10 -9 -9 -8 -8 -8 -7 -7 -7 -7 -7 -7 -7 -6 -6 -6 -5 -5 -5 -5 -4 -4 -4 -4 -4 -3 -3 -------- Run | Jun Mat Min Mat Sto Mat Gar Mat Fac Was Fac Low Low Zio Dee Pro Fac Gar Fac Upp Upp Zhi Pro Fac Upp Upp War Pro Res Total Allies 42 | . . 1 . 1 . 1 . . 20 5 . . 2 1 . 1 . 4 . 2 . 1 . . . 3 . . Largest Group 20 | . . 1 . 1 . 1 . . 20 20 14 12 5 6 1 2 2 3 3 2 . 1 . . . 3 3 . Highest-Rated Group 502 | . . 31 . 100 . 31 . . 502 502 433 363 287 406 32 73 73 174 174 60 . 49 . . . 163 163 . Highest-Rated Ally 119 | . . 31 . 100 . 31 . . 35 35 35 32 96 119 32 41 41 58 58 30 . 49 . . . 65 65 . Warlord Squad Rendezvous 1 | . . . . . . . . . . . . . . . . . . . . . . . 1 . . . . . Muscle 1 | . . . . . . . . . . . . . . . . . . . . . . . 1 . . . . . Total Orders 25 | . . . . . . . . . . . . . . 4 . . . . 4 9 . 4 . . . 4 . . STAY 14 | . . . . . . . . . . . . . . 2 . . . . 2 8 . . . . . 2 . . FOLLOW 7 | . . . . . . . . . . . . . . 2 . . . . 2 1 . . . . . 2 . . EXPLORE 2 | . . . . . . . . . . . . . . . . . . . . . . 2 . . . . . . RETURN 2 | . . . . . . . . . . . . . . . . . . . . . . 2 . . . . . . Ally Attacks 397 | . . . . 24 . 16 . . . 43 60 65 . 71 . 1 19 9 27 26 . 1 . . . 23 12 . Total Damage 11354 | . . . . 771 . 274 . . . 707 2025 1096 . 2245 . 25 614 351 1019 821 . 20 . . . 989 397 . Kills 95 | . . . . 11 . 2 . . . 13 16 11 . 15 . . 5 4 7 5 . . . . . 5 1 . Allies Corrupted . | . . . . . . . . . . . . . . . . . . . . . . . . . . . . . Allies Melted 2 | . . . . . . . . . . . . . . . . . . . 2 . . . . . . . . . Intel | -11 -10 -10 -9 -9 -8 -8 -8 -7 -7 -7 -7 -7 -7 -7 -6 -6 -6 -5 -5 -5 -5 -4 -4 -4 -4 -4 -3 -3 ------- Run | Jun Mat Min Mat Sto Mat Gar Mat Fac Was Fac Low Low Zio Dee Pro Fac Gar Fac Upp Upp Zhi Pro Fac Upp Upp War Pro Res Robot Analysis Total 8 | . 1 . 3 . . . . . . . . . . . . . . . . . 4 . . . . . . . Derelict Logs Recovered 13 | . . 1 . . . . . . . . 2 2 . . 2 . . . 2 1 . . . 2 1 . . . Drone Launches 3 | . . . . . . . . . . . . . . . . . . . . . . 3 . . . . . . Drone Recoveries 3 | . . . . . . . . . . . . . . . . . . . . . . 3 . . . . . . Exploration | -11 -10 -10 -9 -9 -8 -8 -8 -7 -7 -7 -7 -7 -7 -7 -6 -6 -6 -5 -5 -5 -5 -4 -4 -4 -4 -4 -3 -3 ------------- Run | Jun Mat Min Mat Sto Mat Gar Mat Fac Was Fac Low Low Zio Dee Pro Fac Gar Fac Upp Upp Zhi Pro Fac Upp Upp War Pro Res Turns Passed 31378 | 7 1278 1089 1374 2880 503 1910 684 382 150 384 692 418 1648 2017 722 254 1395 367 2195 2911 592 515 283 1713 1630 1185 1542 658 Spaces Moved 18983 | 3 521 612 621 889 128 648 293 640 282 601 1262 736 1489 1168 595 204 769 221 1294 1390 185 324 266 951 895 763 995 238 Core 373 | . . . . . . . . . . . . . 1 . . . . . . . . 101 257 . . . . 14 Treads 3975 | 3 521 612 543 889 128 648 293 13 . . . . . . . . . . . . . 4 . . . . 183 138 Legs 10163 | . . . 78 . . . . . . . . . 604 1157 595 204 769 221 1294 1390 185 150 9 951 895 763 812 86 Wheels . | . . . . . . . . . . . . . . . . . . . . . . . . . . . . . Hover 80 | . . . . . . . . . . . . . . 11 . . . . . . . 69 . . . . . . Flight 4392 | . . . . . . . . 627 282 601 1262 736 884 . . . . . . . . . . . . . . . Fastest Speed 34 | 160 160 160 120 160 250 166 163 37 37 34 34 34 34 113 113 113 113 113 117 120 186 48 50 120 120 106 100 50 Average Speed 128 | 160 160 160 163 219 250 241 186 42 37 34 34 34 103 128 113 114 113 121 154 183 224 129 77 147 163 117 120 146 Slowest Speed 360 | 160 160 160 240 250 250 250 243 262 112 37 106 34 350 360 113 115 115 203 203 260 260 270 150 190 190 120 250 240 Overloaded Moves . | . . . . . . . . . . . . . . . . . . . . . . . . . . . . . Propulsion Burnouts . | . . . . . . . . . . . . . . . . . . . . . . . . . . . . . Robots Hopped 13 | . . . . . . . . 7 . 4 . 2 . . . . . . . . . . . . . . . . Cave-ins Triggered . | . . . . . . . . . . . . . . . . . . . . . . . . . . . . . Teleports 1 | . . . . . . . . . . . . . . . . . . . . . . 1 . . . . . . Exploration Rate (%) 60 | 2 78 99 52 96 9 72 26 12 95 20 99 84 87 84 74 7 68 8 97 96 60 62 10 90 90 83 78 10 Regions Visited 28 Branch Regions 15 Pre-discovered Areas 11 | . 1 . 1 . . . . . . . 1 1 . . . . . . 3 . 3 . . . . . 1 . Known Exits Taken 9 | . . . 1 . 1 . . . . 1 1 1 . . . 1 . 1 . . . 1 1 . . . . . Unknown Exits Taken 15 | 1 1 1 . 1 . . 1 . . . . . 1 1 1 . . . 1 1 1 . . 1 1 1 1 . Scrap Searched 37 | . . 1 . . . . . . . . 5 5 4 . 2 . . . 4 4 . 2 . 3 5 . 2 . Spaces Dug 68 | . . . . 2 . 9 . . . . 3 . 1 5 3 . 9 . 14 2 . . 8 1 . 5 . 6 Terrain Destroyed 395 | . . . 25 67 . 53 12 35 . 15 3 . 1 5 4 . 27 . 20 14 . . 8 13 56 9 22 6 Melee 16 | . . . . 1 . 1 . . . . 3 . 1 . . . 1 . . . . . . . . 3 . 6 Projectile 72 | . . . 1 15 . . . . . . . . . 3 3 . . . 20 14 . . 8 3 . 2 3 . AOE 301 | . . . 24 51 . 52 12 35 . 15 . . . . . . 23 . . . . . . 10 56 4 19 . Terrain Rammed . | . . . . . . . . . . . . . . . . . . . . . . . . . . . . . Walls Destroyed . | . . . . . . . . . . . . . . . . . . . . . . . . . . . . . Machines Disabled . | . . . . . . . . . . . . . . . . . . . . . . . . . . . . . Actions | -11 -10 -10 -9 -9 -8 -8 -8 -7 -7 -7 -7 -7 -7 -7 -6 -6 -6 -5 -5 -5 -5 -4 -4 -4 -4 -4 -3 -3 --------- Run | Jun Mat Min Mat Sto Mat Gar Mat Fac Was Fac Low Low Zio Dee Pro Fac Gar Fac Upp Upp Zhi Pro Fac Upp Upp War Pro Res Total 24202 | 4 859 666 859 1621 297 820 369 744 322 762 1506 889 1578 1628 624 222 1207 276 1425 1576 348 387 319 1208 999 967 1279 441 Wait 3124 | . 198 2 79 479 149 17 25 38 27 146 223 135 34 335 12 13 343 16 41 48 136 22 12 170 43 83 210 88 Move 18928 | 2 520 611 620 888 127 645 292 626 281 593 1261 731 1488 1167 594 204 766 220 1293 1389 184 323 265 950 894 762 994 238 Hop 12 | . . . . . . . . 7 . 3 . 2 . . . . . . . . . . . . . . . . Pick Up 166 | . 10 7 20 16 6 10 4 3 1 3 2 3 15 15 . . 8 2 5 6 2 3 3 10 3 1 . 8 Fast Attach 192 | . 4 . 9 10 2 10 1 4 3 1 2 . 8 17 2 3 7 6 12 12 8 2 9 13 7 15 13 12 Attach 73 | . 1 2 7 1 4 2 2 5 2 3 2 2 1 1 . . 4 3 1 3 2 12 4 3 1 . 1 4 Detach 53 | . 2 . 6 1 . . 1 6 1 2 2 1 6 5 . . 1 2 3 1 1 . 3 2 . 2 3 2 Swap 167 | 2 7 2 14 31 1 25 7 5 1 1 3 3 5 7 3 2 7 . 5 8 1 1 1 10 5 6 2 2 Drop 261 | . 5 5 24 33 1 14 5 11 3 3 3 2 11 30 2 . 5 1 16 13 7 6 4 12 6 15 10 14 Fire 816 | . 57 30 70 91 7 80 32 3 . 2 . 8 . 51 11 . 38 21 47 86 7 16 15 23 31 45 45 . Melee 176 | . . . . 12 . 11 . . 2 5 8 2 10 . . . 11 3 . 1 . . 3 12 9 14 1 72 Ram . | . . . . . . . . . . . . . . . . . . . . . . . . . . . . . Kick 6 | . . . 4 . . . . . . . . . . . . . 1 . . . . . . 1 . . . . Crush 21 | . 4 7 6 1 . 2 . . . . . . . . . . . . . . . . . . . . . 1 Escape Stasis 59 | . . . . 3 . 4 . 36 . . . . . . . . 16 . . . . . . . . . . . Rewire 34 | . . . . . . . . . 1 . . . . . . . . 2 . 5 . 2 . . . 24 . . Trap 114 | . 51 . . 55 . . . . . . . . . . . . . . 2 4 . . . 2 . . . . Miscellaneous . | . . . . . . . . . . . . . . . . . . . . . . . . . . . . . Route ------- -11/Junkyard -10/Materials (discovered 4 exits: *Mat x2 / [*Min x2]) -10/Mines (discovered 3 exits: *Mat x2 / [*Exi]) -9/Materials (discovered 4 exits: *Mat / Min x2 / *Sto) -9/Storage -8/Materials -8/Garrison (discovered 3 exits: *Mat x3) -8/Materials -7/Factory (discovered 2 exits: *Low x2) -7/Waste -7/Factory (discovered 2 exits: *Fac / *Low) -7/Lower Caves -7/Lower Caves (discovered 2 exits: *Fac / *Zio) -7/Zion (discovered 2 exits: [*Dee] / [*Pro]) -7/Deep Caves -6/Proximity Caves -6/Factory (discovered 2 exits: Low / Gar) -6/Garrison (discovered 3 exits: *Fac x3) -5/Factory (discovered 2 exits: *Upp x2) -5/Upper Caves -5/Upper Caves (discovered 2 exits: Fac / *Zhi) -5/Zhirov -4/Proximity Caves -4/Factory (discovered 3 exits: *Upp x2 / Arm) -4/Upper Caves -4/Upper Caves (discovered 2 exits: *Res / *War) -4/Warlord -3/Proximity Caves -3/Research (discovered 2 exits: Res / Qua) History --------- Turn | Location | Event 4 | -11/Junkyard | Discovered new exit (range 1) 8 | -11/Junkyard | Entered Materials 323 | -10/Materials | Build established: Mutant 325 | -10/Materials | Discovered new exit (range 13) 477 | -10/Materials | Central database locked down 737 | -10/Materials | Repaired Lgt. Treads 765 | -10/Materials | Repaired Lgt. Treads 795 | -10/Materials | Discovered new exit (range 10) 939 | -10/Materials | Discovered new exit (range 6) 1035 | -10/Materials | Discovered new exit (range 6) 1286 | -10/Materials | Entered Mines 1295 | -10/Mines | Discovered new exit (range 15) 1466 | -10/Mines | Learned 4 Materials zone layouts 1497 | -10/Mines | Core integrity fell below 50% 1725 | -10/Mines | Received a Mining Laser from a helpful Derelict 1967 | -10/Mines | Deemed a non-threat by the Exiles lab entrance 1967 | -10/Mines | Discovered new exit (range 5) 2172 | -10/Mines | YI-UF0 nonchalantly dropped a Grenade Launcher on the ground 2209 | -10/Mines | Destroyed YI-UF0 2218 | -10/Mines | Discovered new exit (range 10) 2227 | -10/Mines | Found Prototype Launcher 2375 | -10/Mines | Entered Materials 2375 | -9/Materials | Evolved 2 slots: Propulsion x1, Utility x1 2376 | -9/Materials | Identified exit to Mines 2725 | -9/Materials | Identified YI-UF0's Doublenader 3190 | -9/Materials | Build established: Scavenger-Mutant 3269 | -9/Materials | Discovered new exit (range 16) 3397 | -9/Materials | Identified exit to Storage 3749 | -9/Materials | Entered Storage 4768 | -9/Storage | Build established: Mutant 5243 | -9/Storage | Discovered new exit (range 5) 5261 | -9/Storage | Met 01-MTF 6149 | -9/Storage | First assault squad dispatched 6462 | -9/Storage | Destroyed 01-MTF 6594 | -9/Storage | Destroyed 9 combat bots 6629 | -9/Storage | Entered Materials 6629 | -8/Materials | Evolved 2 slots: Utility x2 6697 | -8/Materials | Identified exit to Garrison 6915 | -8/Materials | Repaired Imp. Propulsion Shielding 6954 | -8/Materials | Repaired Arm. Treads 6993 | -8/Materials | Repaired Arm. Treads 7032 | -8/Materials | Repaired Arm. Treads 7132 | -8/Materials | Entered Garrison 7156 | -8/Garrison | Triggered checkpoint 7208 | -8/Garrison | Triggered checkpoint 7261 | -8/Garrison | Rescued a captive Derelict 7699 | -8/Garrison | Triggered checkpoint 7772 | -8/Garrison | Triggered checkpoint 7836 | -8/Garrison | Discovered new exit (range 28) 7836 | -8/Garrison | Discovered new exit (range 58) 7836 | -8/Garrison | Discovered new exit (range 74) 8059 | -8/Garrison | Spotted B-75 Beast 8151 | -8/Garrison | Destroyed B-75 Beast 8247 | -8/Garrison | Core integrity fell below 50% 8300 | -8/Garrison | Lost 3 parts (1p1n1u) 8342 | -8/Garrison | Triggered checkpoint 8425 | -8/Garrison | Attempted to access garrison exit controls, blocked by remote lockdown 8794 | -8/Garrison | Triggered checkpoint 8838 | -8/Garrison | Attempted to access garrison exit controls, blocked by remote lockdown 9042 | -8/Garrison | Entered Materials 9473 | -8/Materials | Discovered new exit (range 3) 9599 | -8/Materials | Build established: Scavenger-Mutant 9726 | -8/Materials | Entered Factory 9726 | -7/Factory | Evolved 2 slots: Utility x2 9812 | -7/Factory | Discovered new exit (range 6) 9870 | -7/Factory | Identified exit to Lower Caves 10062 | -7/Factory | Build established: Mutant 10108 | -7/Factory | Manually triggered Chute Trap 10108 | -7/Factory | Sucked down chute 10108 | -7/Factory | Entered Waste 10109 | -7/Waste | Joined by Warlord forces that had cleared the area 10159 | -7/Waste | Discovered new exit (range 20) 10258 | -7/Waste | Entered Factory 10258 | -7/Factory | Accompanied by 20 allies 10319 | -7/Factory | Discovered new exit (range 14) 10356 | -7/Factory | Discovered exit to Lower Caves (range 16) 10555 | -7/Factory | Fabricated Y-54 Guardian (x2) 10642 | -7/Factory | Entered Lower Caves 10642 | -7/Lower Caves | Accompanied by 14 allies 10648 | -7/Lower Caves | Met a Warlord Commander 10649 | -7/Lower Caves | Learned location of Warlord (-4) 10656 | -7/Lower Caves | Found Encrypted Comm Array 10763 | -7/Lower Caves | Learned Armory security intel 10763 | -7/Lower Caves | Learned Extension security intel 10763 | -7/Lower Caves | Learned Armory trap positions 10765 | -7/Lower Caves | Learned Factory emergency access door positions 10850 | -7/Lower Caves | Learned location of 1 exit from Factory 10994 | -7/Lower Caves | Found Alien Artifact 10994 | -7/Lower Caves | Identified Dimensional Node Initializer 10994 | -7/Lower Caves | Initialized slip node 10999 | -7/Lower Caves | Discovered new exit (range 15) 11036 | -7/Lower Caves | Identified exit to Lower Caves 11131 | -7/Lower Caves | Attracted the attention of an 0b10 checkpoint 11334 | -7/Lower Caves | Entered another Lower Caves area 11334 | -7/Lower Caves | Accompanied by 12 allies 11355 | -7/Lower Caves | Discovered new exit (range 9) 11400 | -7/Lower Caves | Learned Extension terminal intel 11400 | -7/Lower Caves | Learned Factory terminal intel 11400 | -7/Lower Caves | Learned Armory emergency access door positions 11400 | -7/Lower Caves | Learned location of 1 exit from Research 11497 | -7/Lower Caves | Spotted B-75 Beast 11656 | -7/Lower Caves | Discovered new exit (range 15) 11662 | -7/Lower Caves | Identified exit to Zion 11752 | -7/Lower Caves | Entered Zion 11752 | -7/Zion | Accompanied by 3 allies 11783 | -7/Zion | Discovered new exit (range 11) 11787 | -7/Zion | Found CR-A16's Pointy Stick 11951 | -7/Zion | Given A8's code to call for help 12491 | -7/Zion | Build established: Derelict-Mutant 13367 | -7/Zion | Enhanced Grunt warped into view, answering call for help 13368 | -7/Zion | Enhanced Grunt warped into view, answering call for help 13383 | -7/Zion | Discovered new exit (range 3) 13383 | -7/Zion | Saw the warning signs outside the Deep Caves entrance 13400 | -7/Zion | Entered Deep Caves 13400 | -7/Deep Caves | Accompanied by 5 allies 13402 | -7/Deep Caves | Met 5H-AD0 13590 | -7/Deep Caves | Attacked by Z-Imprinter 13595 | -7/Deep Caves | Allies destroyed Z-Imprinter 13619 | -7/Deep Caves | Z-Facility disabled 14132 | -7/Deep Caves | Discovered new exit (range 8) 14355 | -7/Deep Caves | Found Prototype Protection 14355 | -7/Deep Caves | Identified Zio. Heavy Carapace 14457 | -7/Deep Caves | Found Prototype Device 14457 | -7/Deep Caves | Identified Exp. Thermal Shield 14475 | -7/Deep Caves | Found Prototype Protection 14475 | -7/Deep Caves | Identified Zio. Weapon Casing 14884 | -7/Deep Caves | Found Prototype Device 14884 | -7/Deep Caves | Identified Zio. Metafield Generator 15002 | -7/Deep Caves | Found Surveybot 24 Chip 15095 | -7/Deep Caves | Found Zio. Heavy Carapace 15417 | -7/Deep Caves | Entered Proximity Caves 15417 | -6/Proximity Caves | Accompanied by 1 ally 15607 | -6/Proximity Caves | Learned Factory terminal intel 15911 | -6/Proximity Caves | Discovered new exit (range 8) 15937 | -6/Proximity Caves | Learned 4 Factory zone layouts 16139 | -6/Proximity Caves | Entered Factory 16139 | -6/Factory | Accompanied by 1 ally 16139 | -6/Factory | Evolved 2 slots: Propulsion x1, Utility x1 16140 | -6/Factory | Identified exit to Lower Caves 16143 | -6/Factory | Loaded intel: 26 terminal locations 16248 | -6/Factory | Repaired Imp. Heavy Armor Plating 16325 | -6/Factory | Identified exit to Garrison 16348 | -6/Factory | Spotted B-75 Beast 16393 | -6/Factory | Entered Garrison 16393 | -6/Garrison | Accompanied by 2 allies 16424 | -6/Garrison | Triggered checkpoint 16560 | -6/Garrison | Triggered checkpoint 16580 | -6/Garrison | Spotted B-75 Beast 16629 | -6/Garrison | Destroyed 11 combat bots 16734 | -6/Garrison | Revealed the true nature of CR-A16's Pointy Stick 16737 | -6/Garrison | Destroyed B-75 Beast 16762 | -6/Garrison | Lost 4 parts (1p1n2u) 16852 | -6/Garrison | Triggered checkpoint 16852 | -6/Garrison | Discovered new exit (range 14) 17198 | -6/Garrison | Build established: Scavenger-Mutant 17203 | -6/Garrison | Discovered new exit (range 8) 17601 | -6/Garrison | Attempted to access garrison exit controls, blocked by remote lockdown 17689 | -6/Garrison | Attempted to access garrison exit controls, blocked by remote lockdown 17750 | -6/Garrison | Triggered checkpoint 17757 | -6/Garrison | Triggered checkpoint 17780 | -6/Garrison | Discovered new exit (range 8) 17788 | -6/Garrison | Entered Factory 17788 | -5/Factory | Evolved 2 slots: Power x1, Propulsion x1 17789 | -5/Factory | Identified exit to Upper Caves 17790 | -5/Factory | Loaded intel: 28 terminal locations 18002 | -5/Factory | Discovered exit to Upper Caves (range 15) 18004 | -5/Factory | Garrison activated, responded to threat 18086 | -5/Factory | Lost 3 parts (1u2w) 18139 | -5/Factory | Fabricated G-73 Enforcer? 18155 | -5/Factory | Entered Upper Caves 18155 | -5/Upper Caves | Accompanied by 3 allies 18353 | -5/Upper Caves | Attracted the attention of an 0b10 checkpoint 18411 | -5/Upper Caves | Learned Factory interactive machine intel 18594 | -5/Upper Caves | Ambushed by wild Derelicts 19237 | -5/Upper Caves | Learned location of Armory (-4) 19282 | -5/Upper Caves | Learned Research emergency access door positions 19282 | -5/Upper Caves | Learned Research security intel 19282 | -5/Upper Caves | Learned Armory security intel 19282 | -5/Upper Caves | Learned Extension terminal intel 19354 | -5/Upper Caves | Destroyed QY-Y6C(g) 20157 | -5/Upper Caves | Discovered new exit (range 6) 20260 | -5/Upper Caves | Encountered a Warlord checkpoint 20350 | -5/Upper Caves | Entered another Upper Caves area 20351 | -5/Upper Caves | Identified exit to Factory 20506 | -5/Upper Caves | Attracted the attention of an 0b10 outpost 20924 | -5/Upper Caves | Attracted the attention of an 0b10 checkpoint 21230 | -5/Upper Caves | Spotted B-75 Beast 21254 | -5/Upper Caves | Destroyed B-75 Beast 21277 | -5/Upper Caves | Lost 3 parts (1n2u) 21979 | -5/Upper Caves | Attacked by a delusional Derelict stockpiling parts 22624 | -5/Upper Caves | P-70 Sage assimilated allied Fighter 6a 23012 | -5/Upper Caves | Discovered new exit (range 14) 23221 | -5/Upper Caves | Acquired the password to a Derelict Tinkerer's latest research 23239 | -5/Upper Caves | Found Prototype Special Weapon 23239 | -5/Upper Caves | Identified Molecular Deconstructor 23261 | -5/Upper Caves | Entered Zhirov 23261 | -5/Zhirov | Discovered new exit (range 3) 23311 | -5/Zhirov | Met Zhirov 23369 | -5/Zhirov | Learned location of Testing (-2) 23369 | -5/Zhirov | Learned location of Command (-1) 23384 | -5/Zhirov | Zhirov requested help retrieving the SGEMP Prototype 23434 | -5/Zhirov | Found Alien Artifact 23434 | -5/Zhirov | Identified Integrated Dissipator 23434 | -5/Zhirov | Installed Integrated Dissipator, increased core heat dissipation (+20) 23775 | -5/Zhirov | Found Alien Artifact 23853 | -5/Zhirov | Entered Proximity Caves 23853 | -4/Proximity Caves | Identified Transdimensional Reconstructor 23853 | -4/Proximity Caves | Warped through subspace 24117 | -4/Proximity Caves | Attracted the attention of an 0b10 outpost 24319 | -4/Proximity Caves | Core integrity fell below 50% 24357 | -4/Proximity Caves | Lost 19 parts (3p9n6u1w) 24368 | -4/Proximity Caves | Entered Factory 24368 | -4/Factory | Evolved 2 slots: Propulsion x1, Utility x1 24369 | -4/Factory | Loaded intel: 52 interactive machine locations 24432 | -4/Factory | Joined by Warlord Muscle squad 24616 | -4/Factory | Identified exit to Upper Caves 24616 | -4/Factory | Identified exit to Armory 24622 | -4/Factory | Build established: Hacker-Mutant 24651 | -4/Factory | Entered Upper Caves 24654 | -4/Upper Caves | Encountered a Warlord checkpoint 25302 | -4/Upper Caves | Build established: Scavenger-Mutant 25638 | -4/Upper Caves | Attracted the attention of an 0b10 checkpoint 25887 | -4/Upper Caves | Learned Research trap positions 25980 | -4/Upper Caves | Discovered new exit (range 15) 26201 | -4/Upper Caves | Learned 4 Research zone layouts 26364 | -4/Upper Caves | Entered another Upper Caves area 26376 | -4/Upper Caves | Discovered new exit (range 7) 26861 | -4/Upper Caves | Encountered a Warlord checkpoint 26892 | -4/Upper Caves | Learned location of 1 exit from Research 27251 | -4/Upper Caves | Attracted the attention of an 0b10 checkpoint 27615 | -4/Upper Caves | Lost 4 parts (1p2u1w) 27695 | -4/Upper Caves | Discovered new exit (range 15) 27994 | -4/Upper Caves | Entered Warlord 28035 | -4/Warlord | System corruption cleaned by Quarantine Array 28694 | -4/Warlord | Warlord's base attacked by MAIN.C 28705 | -4/Warlord | Met Warlord 28807 | -4/Warlord | Found Prototype Reactor 28807 | -4/Warlord | Identified Vortex Chain Reactor 28813 | -4/Warlord | Found Prototype Device 28813 | -4/Warlord | Identified Exp. Cloaking Device 28825 | -4/Warlord | Found Prototype Hackware 28829 | -4/Warlord | Found Prototype Processor 28829 | -4/Warlord | Identified Exp. Core Analyzer 28832 | -4/Warlord | Found Prototype Device 28832 | -4/Warlord | Identified Exp. Focal Shield 29044 | -4/Warlord | Warlord forces counterattacked 29046 | -4/Warlord | Spotted Striker 29048 | -4/Warlord | Spotted Executioner 29052 | -4/Warlord | Destroyed Executioner 29058 | -4/Warlord | Spotted Striker 29064 | -4/Warlord | Allies destroyed Striker 29076 | -4/Warlord | Destroyed Striker 29110 | -4/Warlord | Destroyed 16 combat bots 29154 | -4/Warlord | Discovered new exit (range 15) 29179 | -4/Warlord | Entered Proximity Caves 29179 | -3/Proximity Caves | Accompanied by 3 allies 29457 | -3/Proximity Caves | Received a Behemoth hack from an annoying Tinkerer 29516 | -3/Proximity Caves | Attracted the attention of an 0b10 checkpoint 29774 | -3/Proximity Caves | Spotted B-86 Titan 29777 | -3/Proximity Caves | Attracted the attention of an 0b10 base 29790 | -3/Proximity Caves | Destroyed B-86 Titan 29838 | -3/Proximity Caves | Lost 3 parts (1u2w) 29860 | -3/Proximity Caves | Learned Factory emergency access door positions 29860 | -3/Proximity Caves | Learned 8 Factory zone layouts 30526 | -3/Proximity Caves | Discovered new exit (range 15) 30721 | -3/Proximity Caves | Entered Research 30721 | -3/Research | Evolved 2 slots: Utility x2 30722 | -3/Research | Identified exit to Quarantine 30722 | -3/Research | Identified exit to Research 30724 | -3/Research | Loaded intel: 60 trap records 31136 | -3/Research | Found Enh. Force Lance 31246 | -3/Research | Found Prototype Launcher 31292 | -3/Research | System corruption reached 10% 31357 | -3/Research | Core integrity fell below 50% 31372 | -3/Research | Core integrity fell below 20% 31379 | -3/Research | Destroyed by X-77 Beamer with Gatling Laser Last Messages --------------- 31344_ Imp. Focal Shield destroyed. 31345_ Dropped Imp. Cloaking Device. 31347_ Dropped Prototype Launcher. 31348_ System corrupted: Heat flow error (+230). 31348_ Dropped Enh. Force Lance. 31349_ Dropped Med. Storage Unit. 31349_ Dropped Adv. Force Field. 31350_ Dropped Power Sword. 31356_ U-05 Engineer builds a Wall. 31360_ Flexi-carbon Leg destroyed. 31360_ Transmission Jammer destroyed. 31364_ R-10 Processor collects Wheel. 31365_ Exp. Core Analyzer destroyed. 31367_ R-10 Processor collects Sml. Battery. 31367_ Hacking Suite destroyed. 31368_ X-77 Beamer IFF system glitched. 31371_ R-10 Processor collects Med. Matter Pod. 31372_ P5UFH